bitfinex/quotes_ETHUSD_20250625
["timestamp","ask_amount","ask_price","bid_price","bid_amount"]
[1750876617866,0.2064,2414.4,2414.1,4.14230232]
[1750876618658,0.2064,2414.4,2414.0,5.35024132]
[1750876618858,0.8073,2414.3,2414.0,0.20682389]
[1750876619064,1.0137,2414.3,2414.0,4.34916511]
[1750876619239,1.0137,2414.3,2414.0,0.20682389]
[1750876619449,1.0137,2414.3,2414.0,4.34931784]
[1750876619839,1.0137,2414.3,2414.0,4.34930901]
[1750876620040,1.0137,2414.3,2414.0,0.20682389]
[1750876620248,5.15581625,2414.3,2414.0,0.20682389]
[1750876620568,4.14216176,2414.2,2414.0,0.20682389]
[1750876620747,1.781,2414.1,2414.0,0.20682389]
[1750876621479,1.0137,2414.3,2414.0,4.34932596]
[1750876621667,1.781,2414.2,2414.1,4.14221808]
[1750876622777,6.817,2414.5,2414.3,4.14181851]
[1750876622942,1.786,2414.4,2414.3,4.14181851]
[1750876623141,0.2064,2414.5,2414.3,4.14181851]
[1750876623371,1.786,2414.6,2414.4,4.14181577]
[1750876623563,1.786,2414.6,2414.3,4.14189381]
[1750876623758,1.786,2414.6,2414.2,4.34846388]
[1750876624153,1.786,2414.6,2414.2,4.34849803]
[1750876624358,1.786,2414.6,2414.4,4.14180032]
[1750876624674,5.92747642,2414.6,2414.2,0.2064]
[1750876624845,0.2064,2414.5,2414.1,4.34863494]
[1750876625273,4.34814695,2414.5,2414.1,0.2064]
[1750876625569,0.2064,2414.3,2414.0,4.349269]
[1750876625953,0.2064,2414.3,2414.1,4.14232234]
[1750876626154,0.2064,2414.3,2414.2,4.14215889]
[1750876626360,0.2064,2414.3,2414.1,4.14224721]
[1750876626672,0.2064,2414.3,2414.2,4.14215889]
[1750876626839,0.2064,2414.3,2414.1,4.14226699]
[1750876627593,0.2064,2414.2,2414.0,4.34921226]
[1750876627743,1.786,2414.1,2414.0,4.34921226]
[1750876628168,1.786,2414.1,2414.0,0.20682389]
[1750876629692,1.786,2414.1,2414.0,4.34932596]
[1750876629979,1.786,2414.1,2414.0,0.20682389]
[1750876630184,1.786,2414.1,2414.0,4.34932596]
[1750876630490,1.786,2414.1,2414.0,0.20682389]
[1750876630807,1.786,2414.1,2414.0,4.34932596]
[1750876636938,1.786,2414.1,2414.0,0.20682389]
[1750876636939,2.5876,2414.1,2414.0,0.20682389]
[1750876637085,2.867,2414.1,2414.0,4.34932596]
[1750876637409,2.5876,2414.1,2414.0,0.20682389]
[1750876637772,6.72993047,2414.1,2414.0,0.20682389]
[1750876638020,6.72993047,2414.1,2413.4,4.14342502]
[1750876638171,6.72993047,2414.1,2413.4,4.14344818]
[1750876638172,10.95053294,2414.0,2413.4,4.14344818]
[1750876638375,12.64042832,2414.0,2413.4,4.14344818]
[1750876638797,12.64042832,2414.0,2413.1,8.64579365]
[1750876638798,0.7679,2413.9,2413.1,0.7694]
[1750876639119,0.7788,2413.3,2412.9,4.36572045]
[1750876639306,1.786,2413.2,2412.9,4.36572045]
[1750876639715,1.786,2413.2,2412.9,0.2214871]
[1750876640014,1.786,2413.2,2412.9,4.36579443]
[1750876640189,0.7788,2413.3,2412.9,4.36579443]
[1750876640190,0.7788,2413.3,2412.9,0.2214871]
[1750876640394,1.786,2413.1,2412.9,4.36579009]
[1750876641282,1.786,2413.1,2412.9,0.2214871]
[1750876642188,4.97341881,2413.0,2412.9,0.2214871]
[1750876642407,10.8292,2413.0,2412.9,0.2214871]
[1750876642732,14.97341881,2413.0,2412.9,0.2214871]
[1750876643191,21.79141881,2413.0,2412.9,0.2214871]
[1750876645341,11.786,2413.0,2412.9,0.2214871]
[1750876645494,17.62613645,2413.0,2412.9,0.2214871]
[1750876646011,13.48191764,2413.0,2412.9,0.2214871]
[1750876646207,18.613,2413.0,2412.9,0.2214871]
[1750876646516,22.75721881,2413.0,2412.9,0.2214871]
[1750876646827,18.613,2413.0,2412.9,0.2214871]
[1750876647429,22.75721881,2413.0,2412.9,0.2214871]
[1750876647599,25.52922847,2413.0,2412.9,0.2214871]
[1750876648916,21.38500966,2413.0,2412.9,0.2214871]
[1750876649303,25.52922847,2413.0,2412.9,0.2214871]
[1750876650228,21.38500966,2413.0,2412.9,0.2214871]
[1750876651009,25.52922847,2413.0,2412.9,0.2214871]
[1750876651717,26.33232847,2413.0,2412.9,0.2214871]
[1750876653412,26.88232847,2413.0,2412.9,0.2214871]
[1750876654824,34.68232847,2413.0,2412.9,0.2214871]
[1750876656445,0.55,2412.4,2411.6,0.20703933]
[1750876656622,4.1464527,2411.7,2411.6,0.20703933]
[1750876656828,12.7834527,2411.7,2411.6,0.20703933]
[1750876657016,8.637,2411.7,2411.6,0.20703933]
[1750876657832,0.8324,2412.1,2411.6,0.20703933]
[1750876658021,9.943,2412.3,2411.8,4.14616399]
[1750876658022,0.2072,2411.9,2411.8,4.14616399]
[1750876658534,8.8452,2411.9,2411.7,4.94448778]
[1750876658734,12.99132837,2411.9,2411.6,0.20703933]
[1750876659041,4.14629788,2411.8,2411.6,0.20703933]
[1750876659348,6.854,2411.7,2411.6,0.20703933]
[1750876659729,6.854,2411.7,2411.6,4.35366397]
[1750876660112,8.8552,2411.9,2411.8,4.14628078]
[1750876662149,8.8552,2411.9,2411.7,0.7981]
[1750876662351,8.8552,2411.9,2411.8,4.14628078]
[1750876664330,0.2072,2411.9,2411.8,5.07605878]
[1750876664530,0.2072,2412.6,2412.4,4.14508173]
[1750876664733,9.945,2413.0,2412.6,4.14490591]
[1750876664734,1.791,2412.7,2412.6,4.14490591]
[1750876665136,0.2072,2412.9,2412.5,4.35222268]
[1750876665137,0.2072,2412.9,2412.8,4.14456233]
[1750876665329,8.8592,2412.9,2412.8,4.14456233]
[1750876665528,8.8592,2412.9,2412.8,4.92696233]
[1750876666125,0.2072,2412.9,2412.8,4.92696233]
[1750876666431,11.736,2413.0,2412.9,4.14439056]
[1750876666754,11.736,2413.0,2412.6,4.14486801]
[1750876667061,11.9432,2413.0,2412.6,4.14490591]
[1750876667729,11.9432,2413.0,2412.6,4.14481801]
[1750876667933,18.79657968,2413.0,2412.5,5.18481151]
[1750876668141,11.9432,2413.0,2412.5,1.0398]
[1750876668343,11.9432,2413.0,2412.7,4.14459504]
[1750876668633,11.9432,2413.0,2412.8,4.14455518]
[1750876668955,10.1522,2413.0,2412.8,4.14456151]
[1750876669159,8.649,2412.9,2412.8,4.14456151]
[1750876669340,10.1522,2413.0,2412.7,4.14466806]
[1750876669535,8.649,2412.9,2412.8,4.14456233]
[1750876671759,1.791,2412.9,2412.8,4.14456233]
[1750876672126,9.945,2413.0,2412.9,4.14439056]
[1750876672330,1.791,2413.3,2413.2,4.14387535]
[1750876672638,1.791,2413.4,2413.3,4.14370364]
[1750876672838,8.65,2413.5,2413.4,4.95163194]
[1750876673531,8.65,2413.5,2413.3,4.14361645]
[1750876673731,8.65,2413.5,2413.2,4.91288062]
[1750876673932,8.65,2413.5,2413.3,4.14369172]
[1750876674854,8.65,2413.5,2413.4,4.14353194]
[1750876675253,1.791,2413.8,2413.4,1.67473237]
[1750876675465,1.791,2413.8,2413.5,4.14327714]
[1750876675765,1.791,2413.8,2413.5,4.14335766]
[1750876675971,1.791,2413.8,2413.4,4.91253519]
[1750876676174,1.791,2413.8,2413.5,4.1433495]
[1750876677873,1.791,2413.8,2413.6,4.14313895]
[1750876678573,10.7903,2414.3,2413.7,4.14289003]
[1750876678782,1.07903,2414.2,2413.8,4.14275677]
[1750876678940,10.0,2414.0,2413.8,4.14275677]
[1750876680373,6.853,2414.1,2413.4,4.91261525]
[1750876680374,10.0,2414.1,2413.5,4.14336026]
[1750876680675,12.78767884,2413.9,2413.4,4.91254583]
[1750876680875,4.94401528,2413.8,2413.4,0.7691]
[1750876681076,4.14302894,2413.7,2413.2,0.791]
[1750876681253,6.85,2413.6,2413.2,4.93477864]
[1750876681445,6.85,2413.6,2413.3,4.14370292]
[1750876681861,7.92903,2413.6,2413.0,4.14421881]
[1750876682061,7.92903,2413.6,2412.9,0.791]
[1750876682269,4.92185764,2413.4,2412.9,4.93536954]
[1750876682585,12.78771448,2413.3,2412.9,0.791]
[1750876682788,12.78776962,2413.3,2412.8,0.20703934]
[1750876682946,12.78779489,2413.3,2412.8,4.35150738]
[1750876683143,8.644,2413.3,2412.9,4.14430286]
[1750876683421,0.2072,2413.1,2412.9,4.14430286]
[1750876683562,0.2072,2413.1,2412.8,0.20703934]
[1750876683973,6.851,2413.0,2412.8,0.20703934]
[1750876684355,6.851,2413.0,2412.9,4.14439056]
[1750876684750,6.851,2413.0,2412.8,4.35151557]
[1750876685048,6.851,2413.0,2412.8,5.51003237]
[1750876685248,6.851,2413.0,2412.9,4.14439056]
[1750876685485,6.851,2413.0,2412.8,0.41423934]
[1750876686070,6.851,2413.0,2412.8,0.20703934]
[1750876686291,4.14439056,2412.9,2412.8,0.20703934]
[1750876686507,6.42957218,2412.9,2412.8,0.20703934]
[1750876686987,4.1450667,2412.6,2412.2,0.2072]
[1750876687193,8.8702,2412.5,2412.2,0.2072]
[1750876687585,8.8702,2412.5,2412.3,4.14531701]
[1750876688188,8.8702,2412.5,2412.2,4.35268509]
[1750876688593,8.8702,2412.5,2412.3,4.14540397]
[1750876688963,0.2072,2412.5,2412.2,4.35270061]
[1750876689271,8.665,2412.4,2412.2,4.35270061]
[1750876689468,8.665,2412.4,2412.3,4.14542138]
[1750876690995,8.665,2412.4,2412.2,4.35268079]
[1750876691494,8.665,2412.4,2412.2,4.14543328]
[1750876692073,8.665,2412.4,2412.1,4.14567751]
[1750876692471,0.7692,2413.1,2412.2,0.42670852]
[1750876692671,1.806,2413.0,2412.9,4.96619056]
[1750876692883,1.806,2413.0,2412.9,5.17339056]
[1750876693071,10.1474,2413.4,2413.3,4.14370364]
[1750876693412,18.8184,2413.4,2413.2,4.14378572]
[1750876694895,18.8184,2413.4,2413.3,4.14370364]
[1750876695397,18.8184,2413.4,2413.2,4.14381691]
[1750876695997,18.8184,2413.4,2413.3,4.14370364]
[1750876696399,18.8184,2413.4,2413.2,4.14378493]
[1750876696778,18.8184,2413.4,2413.1,4.14400743]
[1750876698097,9.941,2413.4,2413.3,4.14370364]
[1750876698279,11.747,2413.4,2413.3,4.14370364]
[1750876698483,11.747,2413.4,2413.3,5.15720364]
[1750876698899,9.941,2413.4,2413.3,5.15720364]
[1750876699116,1.806,2413.5,2413.4,4.14353194]
[1750876699269,6.858,2413.8,2413.7,4.14287163]
[1750876699475,8.665,2413.8,2413.7,4.14287163]
[1750876699899,14.08408288,2414.3,2414.2,4.14215889]
[1750876699900,11.748,2414.3,2414.2,4.14215889]
[1750876700075,18.607,2414.3,2413.8,0.7511]
[1750876700276,18.607,2414.3,2414.2,4.14215889]
[1750876700976,18.608,2414.3,2414.2,4.14215889]
[1750876701277,11.748,2414.3,2414.2,4.14215889]
[1750876701517,18.606,2414.3,2414.2,4.14215889]
[1750876702724,18.606,2414.3,2414.1,4.14225871]
[1750876703682,18.606,2414.3,2413.9,0.2064]
[1750876703882,22.74807045,2414.3,2413.9,0.2064]
[1750876704134,25.12325685,2414.3,2413.6,4.14310013]
[1750876704417,25.12325685,2414.3,2413.5,0.8283]
[1750876704418,0.7931,2414.2,2413.5,0.8283]
[1750876704601,0.7931,2414.2,2413.9,4.14267368]
[1750876704602,0.2064,2414.0,2413.9,4.14267368]
[1750876706726,6.852,2414.1,2414.0,4.14250207]
[1750876708127,11.9544,2414.3,2414.2,4.14215889]
[1750876708304,18.6,2414.3,2414.2,4.14215889]
[1750876709206,9.942,2414.3,2414.2,4.14215889]
[1750876709403,18.598,2414.3,2414.2,4.14215889]
[1750876709607,9.942,2414.3,2414.2,4.14215889]
[1750876709921,18.597,2414.3,2413.9,4.94308467]
[1750876710225,22.73899127,2414.3,2413.9,0.2064]
[1750876710420,4.89256809,2414.2,2413.7,0.7699]
[1750876710624,7.0584,2414.1,2413.7,4.1429054]
[1750876710929,7.0584,2414.1,2413.6,4.34958676]
[1750876710930,7.0584,2414.1,2413.8,4.14278906]
[1750876711421,7.0584,2414.1,2413.6,4.3495195]
[1750876711623,7.0584,2414.1,2413.7,4.14292075]
[1750876712117,7.0584,2414.1,2413.8,4.14282493]
[1750876712327,7.0584,2414.1,2413.7,4.14295219]
[1750876713325,7.0584,2414.1,2413.8,4.14284041]
[1750876713725,7.0584,2414.1,2413.7,4.1429379]
[1750876714510,4.1425473,2414.0,2413.6,0.2064]
[1750876714697,4.14263401,2414.0,2413.5,4.14334636]
[1750876715014,0.2064,2413.8,2413.5,4.14334636]
[1750876715328,8.648,2413.7,2413.5,4.14334636]
[1750876715523,8.648,2413.7,2413.6,4.14318859]
[1750876717110,8.648,2413.7,2413.4,0.2064]
[1750876717524,8.648,2413.7,2413.4,4.34991221]
[1750876718137,8.648,2413.7,2413.4,0.2064]
[1750876718305,12.79107266,2413.7,2413.4,0.2064]
[1750876718622,8.648,2413.7,2413.4,0.2064]
[1750876718997,10.44323528,2413.7,2413.4,0.2064]
[1750876719334,8.645,2413.6,2413.4,4.34990109]
[1750876720001,8.645,2413.6,2413.5,4.14336026]
[1750876720720,0.2064,2413.8,2413.7,4.14301694]
[1750876720924,8.64,2413.8,2413.7,4.14301694]
[1750876721319,8.64,2413.8,2413.5,0.2064]
[1750876721527,0.794,2413.7,2413.1,4.97265883]
[1750876721728,1.0004,2413.7,2413.3,0.2064]
[1750876722030,4.14271324,2413.9,2413.8,4.1428453]
[1750876722031,1.803,2413.9,2413.8,4.1428453]
[1750876724136,1.803,2413.9,2413.7,4.14296983]
[1750876724326,1.803,2413.9,2413.6,4.34950039]
[1750876725219,1.803,2413.9,2413.7,4.14300546]
[1750876726231,1.803,2413.9,2413.6,4.34950272]
[1750876726433,1.803,2413.9,2413.7,4.14300053]
[1750876726814,1.803,2413.9,2413.8,4.1428453]
[1750876727499,1.803,2413.9,2413.8,4.99206988]
[1750876727699,1.803,2413.9,2413.8,5.19846988]
[1750876727932,1.803,2413.9,2413.8,5.96266988]
[1750876729335,1.803,2414.1,2413.9,4.14267368]
[1750876729638,1.803,2414.1,2414.0,5.15303643]
[1750876729837,1.803,2414.1,2414.0,5.35943643]
[1750876731535,9.942,2414.3,2414.2,4.14215889]
[1750876731536,11.745,2414.3,2414.2,4.14215889]
[1750876731722,11.745,2414.3,2414.2,0.9501388]
[1750876732039,11.745,2414.3,2414.1,0.2064]
[1750876733034,11.745,2414.3,2414.0,4.14244915]
[1750876733242,11.745,2414.3,2414.0,4.34884915]
[1750876733537,11.745,2414.3,2414.1,4.14224712]
[1750876733927,11.745,2414.3,2414.2,4.14215889]
[1750876734129,0.2064,2414.4,2414.3,4.14198732]
[1750876734325,1.803,2414.5,2414.4,4.14169714]
[1750876735842,1.803,2414.5,2414.2,1.0006]
[1750876736340,1.803,2414.5,2414.3,4.14197526]
[1750876737047,1.803,2414.5,2414.2,0.2064]
[1750876737048,0.7833,2414.4,2414.2,0.2064]
[1750876737208,10.9897,2414.4,2414.0,4.34878274]
[1750876737408,10.9897,2414.4,2414.0,0.2064]
[1750876737409,15.13161267,2414.4,2414.0,0.2064]
[1750876737641,10.9897,2414.4,2414.0,0.2064]
[1750876737846,0.2064,2414.2,2413.8,4.14284484]
[1750876738456,4.34859425,2414.2,2413.7,5.17853192]
[1750876738836,0.2064,2414.2,2413.8,4.14283192]
[1750876739538,4.34860801,2414.2,2413.7,5.17853656]
[1750876739940,4.34860801,2414.2,2413.8,4.14282483]
[1750876740248,4.34860801,2414.2,2413.7,5.17853656]
[1750876740249,4.34860801,2414.2,2413.7,5.17852885]
[1750876742036,0.2064,2414.2,2413.7,5.17852885]
[1750876742240,0.2064,2414.2,2413.8,4.1428453]
[1750876742436,0.2064,2414.2,2413.8,4.14275474]
[1750876742753,0.9897,2414.4,2414.1,4.14228326]
[1750876742950,0.9897,2414.4,2414.2,4.14212342]
[1750876743155,0.8897,2414.4,2414.2,4.14212342]
[1750876743475,1.803,2414.5,2414.3,4.14198732]
[1750876743949,1.803,2414.5,2414.4,4.14181577]
[1750876745252,0.2064,2414.6,2414.5,4.14164423]
[1750876745457,1.795,2415.1,2414.9,4.14087373]
[1750876745766,2.0014,2415.1,2414.9,4.1409371]
[1750876745927,2.0014,2415.1,2414.7,0.2064]
[1750876746132,0.8132,2415.0,2414.7,0.2064]
[1750876749039,0.8132,2415.0,2414.7,4.86508751]
[1750876749243,2.0014,2415.1,2414.8,4.14109112]
[1750876749465,2.0014,2415.1,2414.9,4.14091787]
[1750876749743,1.795,2415.1,2415.0,4.14078674]
[1750876749939,11.795,2415.5,2415.1,4.14061529]
[1750876750265,11.795,2415.5,2415.4,4.14010101]
[1750876750266,1.795,2415.5,2415.4,4.14010101]
[1750876750476,1.795,2415.5,2415.4,4.93030101]
[1750876752053,1.795,2415.5,2415.4,0.9966]
[1750876752258,1.795,2415.5,2415.4,0.2064]
[1750876752461,5.93492962,2415.5,2415.2,0.7962]
[1750876752660,3.83627195,2415.5,2415.1,0.2064]
[1750876752860,0.2064,2415.3,2414.9,0.2064]
[1750876753171,5.17449675,2415.1,2414.7,0.2064]
[1750876753873,5.17449675,2415.1,2414.7,4.34770038]
[1750876753874,1.0338,2415.1,2414.7,4.34770038]
[1750876754167,4.14103849,2414.9,2414.7,0.2064]
[1750876754364,1.795,2415.0,2414.3,4.14186851]
[1750876754574,4.34753779,2414.8,2414.3,0.2064]
[1750876754780,0.2064,2414.8,2414.3,0.2064]
[1750876754976,0.2064,2414.8,2414.3,4.3483594]
[1750876755145,1.795,2415.0,2414.5,0.7962]
[1750876755340,6.14220932,2415.0,2414.6,0.2064]
[1750876755544,4.14096685,2414.9,2414.6,0.2064]
[1750876755872,6.14227691,2415.0,2414.6,0.2064]
[1750876757677,4.14096455,2414.9,2414.6,0.2064]
[1750876758051,6.1422746,2415.0,2414.6,0.2064]
[1750876759178,6.1422746,2415.0,2414.6,4.34783923]
[1750876759179,2.0014,2415.0,2414.6,4.34783923]
[1750876760773,2.0014,2415.0,2414.7,4.14128588]
[1750876761271,2.0014,2415.0,2414.6,4.34778821]
[1750876761451,6.14219221,2415.0,2414.6,4.34778821]
[1750876761646,6.14219221,2415.0,2414.6,0.2064]
[1750876762060,6.14227355,2415.0,2414.6,0.2064]
[1750876762257,4.1413247,2414.7,2414.2,4.93283249]
[1750876762461,4.3477247,2414.7,2414.3,0.2064]
[1750876762661,0.2064,2414.7,2414.3,4.34832588]
[1750876762861,0.2064,2414.7,2414.6,4.1414727]
[1750876763063,0.2064,2414.9,2414.5,4.93237135]
[1750876763679,4.34735837,2414.9,2414.5,4.93237135]
[1750876763879,0.2064,2414.9,2414.6,4.14145139]
[1750876764053,10.8019,2415.3,2414.5,1.71886833]
[1750876764255,0.2064,2415.1,2414.8,4.1411297]
[1750876764985,0.2064,2415.1,2414.9,4.14091717]
[1750876765288,1.795,2415.2,2414.9,4.34735821]
[1750876765468,1.795,2415.2,2415.1,4.14061529]
[1750876766368,1.795,2415.2,2415.0,4.14069359]
[1750876766569,1.795,2415.2,2415.1,4.14061529]
[1750876768394,1.795,2415.2,2415.0,4.14069353]
[1750876769294,1.795,2415.2,2415.1,4.14061529]
[1750876769611,1.795,2415.2,2415.1,5.0821856]
[1750876771023,2.5458,2415.2,2414.9,4.34722702]
[1750876771173,2.5458,2415.2,2414.5,0.826]
[1750876771496,4.34710858,2415.1,2414.7,0.2064]
[1750876771693,0.2064,2415.1,2414.7,0.2064]
[1750876771895,4.14079463,2415.0,2414.7,0.2064]
[1750876772074,4.14064757,2415.1,2414.6,4.14139084]
[1750876772275,0.2064,2414.9,2414.6,4.14139084]
[1750876773001,0.2064,2414.9,2414.7,4.14129213]
[1750876773201,0.2064,2414.9,2414.8,4.1411297]
[1750876773569,0.2064,2414.9,2414.5,5.17397306]
[1750876773769,0.2064,2414.9,2414.7,4.14128389]
[1750876774196,0.2064,2414.9,2414.6,4.658774]
[1750876774493,0.2064,2414.9,2414.7,4.14127934]
[1750876774799,0.2064,2414.9,2414.6,4.65877203]
[1750876775168,0.2064,2414.9,2414.7,4.14127414]
[1750876777502,0.7787,2415.5,2414.8,0.7957]
[1750876777673,4.14019419,2415.4,2414.9,4.14095593]
[1750876777877,4.14063044,2415.1,2414.6,4.14139897]
[1750876778083,2.5677,2415.1,2414.7,4.14128311]
[1750876778381,2.5677,2415.1,2414.9,4.1408681]
[1750876778577,1.789,2415.1,2414.9,4.1408681]
[1750876781004,1.789,2415.1,2415.0,4.14078674]
[1750876781375,1.789,2415.1,2414.9,4.14085992]
[1750876781574,1.789,2415.1,2415.0,4.14078674]
[1750876783181,1.789,2415.1,2414.8,4.14107113]
[1750876783386,1.789,2415.1,2414.9,4.14085963]
[1750876783589,1.789,2415.1,2415.0,4.14078674]
[1750876787623,1.789,2415.1,2414.9,4.14085933]
[1750876787821,1.789,2415.1,2414.8,5.3380983]
[1750876788025,5.92963463,2415.1,2414.6,4.96966201]
[1750876788188,0.2064,2415.0,2414.7,4.14128096]
[1750876788727,0.2064,2415.0,2414.8,4.1411108]
[1750876789114,0.2064,2415.0,2414.9,4.14095821]
[1750876789724,0.2064,2415.0,2414.9,4.96916346]
[1750876790018,1.789,2415.1,2415.0,4.14078674]
[1750876790195,1.9954,2415.6,2415.4,4.14010101]
[1750876790400,1.9954,2415.6,2415.5,4.13992962]
[1750876791485,1.9954,2415.6,2415.3,4.14025138]
[1750876792354,1.9954,2415.6,2415.4,4.1400936]
[1750876793537,1.9954,2415.6,2415.5,4.13992962]
[1750876793748,1.9954,2415.6,2415.4,0.7623163]
[1750876793949,1.9954,2415.6,2415.2,4.34679367]
[1750876794106,6.13524615,2415.6,2415.2,0.2064]
[1750876794306,6.13524615,2415.6,2415.0,4.14070016]
[1750876794307,4.90720896,2415.5,2415.0,4.14070016]
[1750876794548,0.2064,2415.4,2415.0,0.2064]
[1750876794731,4.41644233,2415.4,2414.9,4.14086173]
[1750876794909,7.5822,2415.5,2414.8,0.7728]
[1750876794910,0.2064,2415.2,2414.8,0.7728]
[1750876795109,1.789,2415.1,2414.9,4.14095821]
[1750876795436,2.605,2415.1,2414.7,0.2064]
[1750876795646,2.605,2415.1,2414.7,4.14120234]
[1750876795944,0.2064,2415.0,2414.6,4.34784826]
[1750876796147,0.2064,2415.0,2414.7,0.43478483]
[1750876796745,0.2064,2415.0,2414.7,4.57606913]
[1750876797220,0.2064,2415.0,2414.8,4.14101236]
[1750876798418,0.2064,2415.0,2414.9,4.14095821]
[1750876799644,1.789,2415.5,2414.8,0.8186]
[1750876799833,1.9954,2415.5,2415.2,4.14035809]
[1750876800037,1.9954,2415.5,2415.2,4.14044385]
[1750876800237,1.9954,2415.5,2415.0,0.2064]
[1750876800558,1.9954,2415.5,2415.4,4.14010101]
[1750876800753,1.33060554,2415.5,2415.4,4.14010101]
[1750876801056,1.12420554,2415.5,2415.4,4.14010101]
[1750876801472,1.12420554,2415.5,2415.3,0.2064]
[1750876801770,1.12420554,2415.5,2415.2,4.14036326]
[1750876801969,1.12420554,2415.5,2415.1,0.2064]
[1750876801970,5.26427689,2415.5,2415.1,0.2064]
[1750876802267,1.0036,2415.4,2415.1,4.14061529]
[1750876802436,0.2064,2415.4,2415.3,4.14027242]
[1750876803442,0.2064,2415.4,2415.2,4.14034999]
[1750876803850,0.2064,2415.4,2415.3,4.14027242]
[1750876804054,0.2064,2415.4,2415.2,4.140359]
[1750876804268,0.2064,2415.4,2415.2,4.14042788]
[1750876805560,0.2064,2415.4,2415.3,4.14027242]
[1750876805859,0.2064,2415.6,2415.5,4.13992962]
[1750876806062,1.789,2415.6,2415.5,4.13992962]
[1750876807044,1.789,2415.6,2415.5,4.89942962]
[1750876807340,1.789,2415.6,2415.5,6.00977927]
[1750876807541,1.789,2415.6,2415.5,0.90394965]
[1750876807743,1.789,2415.6,2415.4,0.2064]
[1750876807930,1.789,2415.6,2415.4,4.1399924]
[1750876808135,1.789,2415.6,2415.3,0.9659]
[1750876808382,1.789,2415.6,2415.5,4.13992962]
[1750876810943,1.789,2415.6,2415.3,5.1061287]
[1750876811155,1.789,2415.6,2415.4,0.5998353]
[1750876811359,1.789,2415.6,2415.5,4.13992962]
[1750876811571,1.789,2415.6,2415.4,4.14000558]
[1750876811770,1.787,2416.3,2416.1,4.13889796]
[1750876811952,1.787,2416.3,2415.9,4.13912606]
[1750876812166,1.787,2416.3,2415.9,4.13907501]
[1750876812777,0.7503,2416.2,2415.4,10.7545]
[1750876812974,4.13902868,2416.1,2415.5,4.13979935]
[1750876813484,4.13902868,2416.1,2415.6,4.13969646]
[1750876813685,11.7120453,2416.2,2415.4,0.7545]
[1750876813892,9.08997834,2416.2,2415.6,4.13966116]
[1750876814184,9.08997834,2416.2,2415.8,4.13927754]
[1750876814368,6.823,2416.2,2415.8,4.13939374]
[1750876814568,6.823,2416.2,2415.8,4.89383373]
[1750876814790,6.823,2416.2,2415.8,4.13933373]
[1750876815691,6.823,2416.2,2415.6,4.89418827]
[1750876815870,5.4138459,2416.1,2415.6,4.89415127]
[1750876816071,4.92842277,2416.0,2415.5,4.13982709]
[1750876816373,4.13950812,2415.8,2415.4,1.84727243]
[1750876816696,4.13950812,2415.8,2415.4,4.14004011]
[1750876816697,1.787,2415.8,2415.4,4.14004011]
[1750876817073,5.92644647,2415.8,2415.3,4.1401957]
[1750876817591,1.787,2415.8,2415.4,4.14009545]
[1750876817891,5.92643838,2415.8,2415.4,4.14009545]
[1750876818063,1.787,2415.8,2415.4,4.14009545]
[1750876818573,1.787,2415.8,2415.4,4.14001896]
[1750876818784,4.13943543,2415.8,2415.3,4.14017922]
[1750876818983,1.787,2415.7,2415.3,5.17633133]
[1750876819300,1.787,2415.7,2415.4,4.14007071]
[1750876819622,1.787,2415.7,2415.5,4.13986438]
[1750876819777,1.787,2415.7,2415.4,4.14000359]
[1750876820207,1.787,2415.7,2415.3,1.03615211]
[1750876820505,0.7893,2415.2,2414.8,4.14108766]
[1750876820690,1.787,2415.1,2414.7,0.754]
[1750876820894,1.787,2415.1,2414.8,4.14103442]
[1750876821815,0.2064,2415.0,2414.6,4.34777906]
[1750876821988,0.2064,2415.0,2414.7,0.51017791]
[1750876822311,0.2064,2415.0,2414.6,0.2064]
[1750876822511,0.2064,2415.0,2414.9,4.14095821]
[1750876822688,0.2064,2415.0,2414.8,4.14107646]
[1750876823092,0.7893,2415.4,2415.2,4.14031648]
[1750876823316,1.9934,2415.3,2415.2,4.14031648]
[1750876824112,1.787,2415.3,2415.2,4.96840766]
[1750876825094,0.2064,2415.5,2415.4,4.14010101]
[1750876825295,1.787,2415.5,2415.4,4.14010101]
[1750876826011,1.787,2415.6,2415.5,4.13977086]
[1750876827520,1.787,2415.6,2415.4,4.1400183]
[1750876827723,1.787,2415.6,2415.5,4.13992962]
[1750876827921,1.787,2415.6,2415.3,0.8072]
[1750876828120,1.787,2415.6,2415.2,5.1748668]
[1750876828422,1.787,2415.6,2415.4,4.13995257]
[1750876828812,1.787,2415.6,2415.5,4.13992962]
[1750876830219,1.787,2415.7,2415.6,4.13975823]
[1750876830692,1.787,2415.7,2415.5,5.17422998]
[1750876830917,1.787,2415.7,2415.6,4.13975823]
[1750876833951,10.1374,2415.9,2415.6,4.13975823]
[1750876834130,10.1374,2415.9,2415.8,4.13941551]
[1750876834454,11.9244,2415.9,2415.8,4.13941551]
[1750876834755,11.9244,2415.9,2415.6,4.13967356]
[1750876834958,11.9244,2415.9,2415.7,4.13958509]
[1750876835256,11.9244,2415.9,2415.7,4.13957451]
[1750876836370,11.9244,2415.9,2415.8,4.13941551]
[1750876836656,11.718,2415.9,2415.8,4.13941551]
[1750876837521,11.718,2415.9,2415.8,4.34581551]
[1750876839237,1.787,2415.9,2415.8,4.34581551]
[1750876840145,0.25190982,2415.9,2415.8,4.34581551]
[1750876840345,0.25190982,2415.9,2415.8,5.35426173]
[1750876840868,0.25190982,2415.9,2415.8,1.21484622]
[1750876841034,0.25190982,2415.9,2415.5,4.9125183]
[1750876841240,0.25190982,2415.9,2415.8,4.13941551]
[1750876842064,0.25190982,2415.9,2415.7,0.2064]
[1750876842470,0.25190982,2415.9,2415.7,4.34586127]
[1750876842767,0.25190982,2415.9,2415.8,4.13941551]
[1750876843180,0.25190982,2415.9,2415.7,4.85777041]
[1750876843346,0.25190982,2415.9,2415.7,0.71825613]
[1750876843754,0.25190982,2415.9,2415.8,4.13941551]
[1750876844146,0.25190982,2415.9,2415.7,4.85774422]
[1750876845478,0.8244,2415.8,2415.3,4.14010565]